[Event "Romanian-ch Youth Open U20 2024"]
[Site "Eforie Nord"]
[Date "2024.04.13"]
[Round "2.4"]
[White "Barbu, Simon-Alexandru"]
[Black "Mazilu, Stefan Fabian"]
[Result "0-1"]
[ECO "D41"]
[WhiteElo "1954"]
[BlackElo "1994"]
[Annotator "NA RC"]
[PlyCount "120"]
[EventDate "2024.04.10"]
[EventType "swiss"]
[EventCountry "ROU"]
[SourceTitle "playchess.com"]
[Source "ChessBase"]
[SourceQuality "1"]
[TimeControl "5400+30"]

1. e4 {[%emt 0:00:13]} c6 {[%emt 0:00:47]} 2. c4 {[%emt 0:09:24]} d5 {[%emt 0:00:12]} 3. cxd5 {[%emt 0:00:06]} cxd5 {[%emt 0:00:05]} 4. exd5 {[%emt 0:00:03]} Nf6 {[%emt 0:00:10]} 5. Nc3 {[%emt 0:00:05]} Nxd5 {[%emt 0:07:33]} 6. Nf3 {[%emt 0:00:10]} e6 {[%emt 0:10:30]} 7. Bc4 {[%emt 0:05:52]} Nc6 {[%emt 0:17:19]} 8. d4 {[%emt 0:00:05]} Be7 {[%emt 0:03:34]} 9. O-O {[%emt 0:02:46]} O-O {[%emt 0:06:43]} 10. a3 {[%emt 0:00:14]} Bf6 {[%emt 0:00:26]} 11. Ba2 {[%emt 0:00:48]} Nce7 {[%emt 0:01:28]} 12. Qd3 {[%emt 0:20:37]} Bd7 {[%emt 0:14:59]} 13. Re1 {[%emt 0:02:38]} Bc6 $11 {[%emt 0:06:19]} 14. Ne5 {[%emt 0:12:25]} Nf5 {[%emt 0:08:23]} 15. Bd2 {[%emt 0:09:10]} Nde7 {[%emt 0:03:06]} 16. d5 {[%emt 0:18:57]} Nxd5 {[%emt 0:06:50]} 17. Nxc6 {[%emt 0:11:13]} bxc6 {[%emt 0:00:06]} 18. Rad1 {[%emt 0:01:01]} Nfe7 {[%emt 0:03:15]} 19. Bb1 {[%emt 0:01:08]} g6 {[%emt 0:00:51]} 20. Bh6 {[%emt 0:01:00]} Nxc3 {[%emt 0:04:56]} 21. Bxf8 {[%emt 0:00:13]} Nxd1 {[%emt 0:00:06]} 22. Bxe7 {[%emt 0:02:31]} Qxe7 {[%emt 0:00:44]} 23. Rxd1 {[%emt 0:00:31]} Bxb2 {[%emt 0:00:18]} 24. Qc2 {[%emt 0:00:39]} Bxa3 {[%emt 0:00:46]} 25. Qxc6 {[%emt 0:00:02]} Rd8 {[%emt 0:00:39]} 26. Bc2 {[%emt 0:00:40]} Rxd1+ {[%emt 0:00:49]} 27. Bxd1 {[%emt 0:00:01]} Bc5 {[%emt 0:00:12]} 28. g3 {[%emt 0:01:23]} Bb6 {[%emt 0:00:29]} 29. Qc8+ {[%emt 0:00:33]} Kg7 {[%emt 0:00:04]} 30. Qc3+ {[%emt 0:00:18]} Qf6 {[%emt 0:00:29]} 31. Qc2 {[%emt 0:00:20]} Qd4 {[%emt 0:00:15]} 32. Bf3 {[%emt 0:00:13]} a5 {[%emt 0:00:15]} 33. Bc6 {[%emt 0:00:35]} e5 {[%emt 0:01:05]} 34. Be8 {[%emt 0:00:21]} Kf8 {[%emt 0:01:16]} 35. Bb5 {[%emt 0:00:41]} h5 {[%emt 0:00:32]} 36. Ba4 {[%emt 0:00:59]} h4 {[%emt 0:00:41]} 37. Kg2 {[%emt 0:00:02]} Kg7 {[%emt 0:00:33]} 38. Bb3 {[%emt 0:00:05]} h3+ {[%emt 0:01:18]} 39. Kxh3 {[%emt 0:01:10]} Qxf2 {[%emt 0:00:11]} 40. Qc4 {[%emt 0:00:43]} e4 {[%emt 0:01:12]} 41. Qxe4 {[%emt 0:00:20]} Qf1+ {[%emt 0:00:13]} 42. Qg2 {[%emt 0:00:01]} Qf5+ {[%emt 0:00:28]} 43. g4 {[%emt 0:00:02]} Qf4 {[%emt 0:00:30]} 44. Qg3 {[%emt 0:00:39]} Qh6+ {[%emt 0:00:08]} 45. Kg2 {[%emt 0:00:56]} Qd2+ {[%emt 0:00:08]} 46. Kh3 {[%emt 0:00:02]} Bd4 {[%emt 0:01:19]} 47. g5 {[%emt 0:01:18]} Qe2 {[%emt 0:01:11]} 48. Qf4 {[%emt 0:00:23]} Qd3+ {[%emt 0:00:21]} 49. Qg3 {[%emt 0:00:33]} Qb5 {[%emt 0:00:37]} 50. Qf3 {[%emt 0:00:30]} Qd7+ {[%emt 0:00:35]} 51. Qg4 {[%emt 0:00:06]} Qd6 {[%emt 0:00:12]} 52. Qf3 {[%emt 0:00:12]} Qe7 {[%emt 0:00:11]} 53. Kg4 {[%emt 0:01:10]} Be3 {[%emt 0:00:28]} 54. h4 {[%emt 0:00:43]} Qb4+ {[%emt 0:00:08]} 55. Kg3 {[%emt 0:00:39]} Qxb3 {[%emt 0:00:09]} 56. h5 {[%emt 0:00:01]} Qb8+ {[%emt 0:00:29]} 57. Kg4 {[%emt 0:00:29]} Qb4+ {[%emt 0:00:04]} 58. Kh3 {[%emt 0:00:12]} Bxg5 {[%emt 0:00:09]} 59. hxg6 {[%emt 0:00:23]} fxg6 {[%emt 0:00:13]} 60. Qd5 {[%emt 0:00:31]} Bf6 {[%emt 0:00:35]} 0-1

[Event "Romanian-ch Youth Open U20 2024"]
[Site "Eforie Nord"]
[Date "2024.04.13"]
[Round "3.1"]
[White "Tudoroiu, Razvan-Catalin"]
[Black "Mintau, Andrei-Catalin"]
[Result "1-0"]
[ECO "D02"]
[WhiteElo "2004"]
[BlackElo "2006"]
[Annotator "RC"]
[PlyCount "79"]
[EventDate "2024.04.10"]
[EventType "swiss"]
[EventCountry "ROU"]
[SourceTitle "playchess.com"]
[Source "ChessBase"]
[SourceQuality "1"]
[TimeControl "5400+30"]

1. d4 {[%emt 0:00:06]} Nf6 {[%emt 0:00:20]} 2. Bf4 {[%emt 0:00:17]} d5 {[%emt 0:00:38]} 3. e3 {[%emt 0:00:13]} e6 {[%emt 0:00:06]} 4. Nd2 {[%emt 0:00:04]} Bd6 {[%emt 0:00:10]} 5. Bg3 {[%emt 0:00:06]} O-O {[%emt 0:00:14]} 6. Ngf3 {[%emt 0:01:28]} c5 {[%emt 0:00:27]} 7. c3 {[%emt 0:01:07]} Qc7 {[%emt 0:00:19]} 8. Ne5 {[%emt 0:03:20]} b6 {[%emt 0:01:20]} 9. Bd3 {[%emt 0:04:24]} Ba6 {[%emt 0:01:00]} 10. Bxa6 {[%emt 0:06:24]} Nxa6 {[%emt 0:00:01]} 11. f4 {[%emt 0:00:24]} Rac8 {[%emt 0:14:32]} 12. O-O {[%emt 0:01:08]} b5 {[%emt 0:05:33]} 13. Qe2 {[%emt 0:05:50]} Qb6 {[%emt 0:02:26]} 14. Bh4 {[%emt 0:00:55]} Bxe5 {[%emt 0:05:49]} 15. fxe5 {[%emt 0:00:06]} Nd7 {[%emt 0:00:09]} 16. a3 {[%emt 0:14:45]} f6 {[%emt 0:16:06]} 17. exf6 {[%emt 0:01:47]} Nxf6 {[%emt 0:00:21]} 18. Nf3 {[%emt 0:16:45]} Nb8 {[%emt 0:10:48]} 19. Ne5 {[%emt 0:02:36]} Nbd7 {[%emt 0:02:37]} 20. Bxf6 {[%emt 0:05:41]} Nxf6 {[%emt 0:00:49]} 21. Rxf6 {[%emt 0:00:10]} Rxf6 {[%emt 0:17:19]} 22. Nd7 {[%emt 0:00:10]} Qd8 {[%emt 0:00:33]} 23. Nxf6+ {[%emt 0:00:27]} Qxf6 {[%emt 0:00:04]} 24. Qxb5 {[%emt 0:03:43]} c4 {[%emt 0:00:22]} 25. Rf1 {[%emt 0:06:40]} Qg5 {[%emt 0:02:35]} 26. Rf3 {[%emt 0:00:55]} Rf8 {[%emt 0:00:33]} 27. Rxf8+ {[%emt 0:00:05]} Kxf8 {[%emt 0:00:01]} 28. Qb8+ {[%emt 0:00:08]} Ke7 {[%emt 0:00:10]} 29. Qc7+ {[%emt 0:00:08]} Ke8 {[%emt 0:08:09]} 30. Qf4 {[%emt 0:02:38]} Qg6 {[%emt 0:00:06]} 31. Qb8+ {[%emt 0:02:10]} Ke7 {[%emt 0:00:21]} 32. h3 {[%emt 0:00:06]} Qb1+ {[%emt 0:01:39]} 33. Kh2 {[%emt 0:00:07]} Kf6 {[%emt 0:00:38]} 34. Qf8+ {[%emt 0:04:44]} Kg6 {[%emt 0:00:14]} 35. Qe7 {[%emt 0:00:27]} Qe4 {[%emt 0:03:38]} 36. Qxa7 {[%emt 0:00:46]} Qxe3 {[%emt 0:00:17]} 37. Qb8 {[%emt 0:00:06]} Kf7 {[%emt 0:00:28]} 38. a4 {[%emt 0:00:35]} g5 {[%emt 0:00:08]} 39. Qc7+ {[%emt 0:01:06]} Kg6 {[%emt 0:00:17]} 40. Qe5 {[%emt 0:17:53]} 1-0

[Event "Romanian-ch Youth Open U20 2024"]
[Site "Eforie Nord"]
[Date "2024.04.13"]
[Round "3.2"]
[White "Antonica, Dragos-Andrei"]
[Black "Tudor, Henry Edward"]
[Result "1/2-1/2"]
[ECO "B52"]
[WhiteElo "2317"]
[BlackElo "2279"]
[Annotator "RC"]
[PlyCount "87"]
[EventDate "2024.04.10"]
[EventType "swiss"]
[EventCountry "ROU"]
[SourceTitle "playchess.com"]
[Source "ChessBase"]
[SourceQuality "1"]
[TimeControl "5400+30"]

1. e4 {[%emt 0:00:30]} c5 {[%emt 0:00:30]} 2. Nf3 {[%emt 0:00:04]} d6 {[%emt 0:00:06]} 3. Bb5+ {[%emt 0:00:29]} Bd7 {[%emt 0:00:30]} 4. a4 {[%emt 0:00:32]} Nc6 {[%emt 0:08:01]} 5. Nc3 {[%emt 0:01:01]} Nf6 {[%emt 0:01:39]} 6. O-O {[%emt 0:03:51]} e6 {[%emt 0:04:52]} 7. d4 {[%emt 0:04:59]} cxd4 {[%emt 0:00:23]} 8. Nxd4 {[%emt 0:00:08]} Rc8 {[%emt 0:07:45]} 9. Nxc6 {[%emt 0:10:30]} Bxc6 {[%emt 0:00:53]} 10. Qf3 {[%emt 0:11:37]} Be7 {[%emt 0:12:09]} 11. Rd1 {[%emt 0:09:04]} O-O {[%emt 0:11:53]} 12. Bxc6 {[%emt 0:15:51]} Rxc6 {[%emt 0:02:31]} 13. e5 {[%emt 0:00:16]} Ne8 {[%emt 0:09:29]} 14. exd6 {[%emt 0:03:31]} Nxd6 {[%emt 0:01:35]} 15. Nb5 {[%emt 0:05:53]} a6 {[%emt 0:03:31]} 16. Nd4 {[%emt 0:03:27]} Rc7 {[%emt 0:03:46]} 17. Bf4 {[%emt 0:03:14]} Rd7 {[%emt 0:00:48]} 18. Qg4 {[%emt 0:01:52]} Re8 {[%emt 0:16:28]} 19. Be5 {[%emt 0:03:08]} Bf6 {[%emt 0:00:32]} 20. Nf3 {[%emt 0:00:52]} Qe7 {[%emt 0:07:17]} 21. Rd3 {[%emt 0:04:53]} Rdd8 {[%emt 0:03:34]} 22. Bxf6 {[%emt 0:01:23]} Qxf6 {[%emt 0:00:02]} 23. Qb4 {[%emt 0:00:13]} a5 {[%emt 0:01:27]} 24. Qxa5 {[%emt 0:03:15]} Qxb2 {[%emt 0:00:05]} 25. Rad1 {[%emt 0:01:28]} Ra8 {[%emt 0:00:04]} 26. Qc7 {[%emt 0:03:35]} Nf5 {[%emt 0:01:52]} 27. Rb3 {[%emt 0:05:10]} Qf6 {[%emt 0:00:15]} 28. Rxb7 {[%emt 0:00:35]} Rec8 {[%emt 0:01:54]} 29. Qb6 {[%emt 0:00:44]} Rxa4 {[%emt 0:00:36]} 30. Rb8 {[%emt 0:01:32]} Ra8 {[%emt 0:00:08]} 31. Rxa8 {[%emt 0:00:15]} Rxa8 {[%emt 0:00:00]} 32. c4 {[%emt 0:00:07]} g5 {[%emt 0:00:41]} 33. h3 {[%emt 0:00:23]} h5 {[%emt 0:01:07]} 34. Qb7 {[%emt 0:01:48]} Ra1 {[%emt 0:00:33]} 35. Qb8+ {[%emt 0:00:28]} Kg7 {[%emt 0:00:05]} 36. Rxa1 {[%emt 0:00:13]} Qxa1+ {[%emt 0:00:01]} 37. Kh2 {[%emt 0:00:01]} g4 {[%emt 0:01:27]} 38. hxg4 {[%emt 0:01:10]} hxg4 {[%emt 0:00:00]} 39. Qe5+ {[%emt 0:01:21]} Qxe5+ {[%emt 0:00:05]} 40. Nxe5 {[%emt 0:00:01]} g3+ {[%emt 0:01:20]} 41. fxg3 {[%emt 0:00:02]} Kf6 {[%emt 0:00:13]} 42. Nd3 {[%emt 0:00:48]} e5 {[%emt 0:00:26]} 43. Nf2 {[%emt 0:01:14]} Ne3 {[%emt 0:00:49]} 44. c5 {[%emt 0:00:31]} 1/2-1/2

[Event "Romanian-ch Youth Open U20 2024"]
[Site "Eforie Nord"]
[Date "2024.04.14"]
[Round "4.1"]
[White "Mintau, Andrei-Catalin"]
[Black "Serban, Cristian-Stefan"]
[Result "1/2-1/2"]
[ECO "B22"]
[WhiteElo "2006"]
[BlackElo "2282"]
[Annotator "TA"]
[PlyCount "69"]
[EventDate "2024.04.10"]
[EventType "swiss"]
[EventCountry "ROU"]
[SourceTitle "playchess.com"]
[Source "ChessBase"]
[SourceQuality "1"]
[TimeControl "5400+30"]

{[%evp 19,69,23,18,27,31,25,30,4,12,0,31,36,54,56,65,51,253,225,356,383,350,216,207,201,199,145,221,48,129,127,137,139,153,154,157,147,163,129,134,149,118,24,22,6,55,41,49,37,46,43,54,30]} 1. e4 {[%emt 0:00:04]} c5 {[%emt 0:00:18]} 2. Nf3 {[%emt 0:00:15]} a6 {[%emt 0:00:07]} 3. c3 {[%emt 0:03:31]} d5 {[%emt 0:00:11]} 4. exd5 {[%emt 0:00:10]} Qxd5 {[%emt 0:00:07]} 5. d4 {[%emt 0:00:08]} Nf6 {[%emt 0:00:07]} 6. Be2 {[%emt 0:01:33]} cxd4 {[%emt 0:00:10]} 7. cxd4 {[%emt 0:00:26]} e6 {[%emt 0:00:08]} 8. Nc3 {[%emt 0:01:14]} Qd8 {[%emt 0:00:11]} 9. O-O {[%emt 0:02:17]} Nc6 {[%emt 0:00:10]} 10. Be3 {[%emt 0:05:42]} Bd6 {[%emt 0:00:17]} 11. Rc1 {[%emt 0:06:29]} h6 {[%emt 0:03:17]} 12. Bd3 {[%emt 0:03:21]} O-O {[%emt 0:00:10]} 13. Bb1 {[%emt 0:00:21] White has an edge.} Re8 {[%emt 0:16:49]} 14. a3 {[%emt 0:14:07]} Ne7 {[%emt 0:00:23]} 15. Ne5 {[%emt 0:06:13]} Ned5 {[%emt 0:05:12]} 16. Qf3 {[%emt 0:07:21]} Qe7 {[%emt 0:03:59]} 17. Qg3 {[%emt 0:07:17]} Nxc3 $2 {[%emt 0:18:54]} ({Better is} 17... Nxe3 $14 18. fxe3 Rf8) 18. Rxc3 $18 {[%emt 0:03:30]} Kf8 {[%emt 0:09:37]} (18... Nd5 $142) 19. Qh3 {[%emt 0:21:32][%cal Oe3h6] [#] Black must now prevent Bxh6!} Ng8 {[%emt 0:06:06]} 20. Bf4 {[%emt 0:05:02] And now Bh7 would win.} Rd8 {[%emt 0:08:33]} 21. Rf3 {[%emt 0:06:02]} Bxe5 {[%emt 0:00:17]} 22. dxe5 {[%emt 0:00:05]} (22. Bxe5 $18 b5 23. Qg3) 22... b5 {[%emt 0:00:30]} (22... Bd7 $16 {keeps fighting.} 23. Bd2 a5) 23. Rd3 $2 {[%emt 0:00:44]} ({White should play} 23. Rg3 $18) 23... Bb7 {[%emt 0:02:26]} ({Black should try} 23... Rxd3 $1 $14 24. Qxd3 (24. Bxd3 Bb7 $14) 24... Qd7) 24. Bd2 $16 {[%emt 0:00:41]} a5 {[%emt 0:00:06][%cal Ba6a5,Ba5a4][%mdl 32] Prevents Bb4} 25. b4 {[%emt 0:00:28]} a4 {[%emt 0:10:28] [#]} 26. Be3 $1 {[%emt 0:00:39] aiming for Bc5.} Rxd3 {[%emt 0:00:06]} 27. Bxd3 {[%emt 0:00:03][%cal Oe3c5] Bc5! is the strong threat.} Qd7 {[%emt 0:00:04] Black is weak on the dark squares} 28. Bc5+ {[%emt 0:00:56]} Ne7 {[%emt 0:00:06]} 29. Qh4 {[%emt 0:00:23]} Re8 {[%emt 0:01:47]} 30. Bd6 {[%emt 0:00:20] White has more active pieces. A strong pair of Bishops.} (30. Rd1 $16) 30... Kg8 $11 {[%emt 0:00:41]} 31. Rc1 {[%emt 0:01:05]} Nd5 {[%emt 0:00:36] Inhibits Rc7.} (31... Nf5 $11 32. Qf4 (32. Rc7 $2 Qxc7 33. Bxc7 Nxh4 $19) 32... Bc6) 32. Rc5 {[%emt 0:00:35] White is slightly better.} Rc8 $1 {[%emt 0:00:21]} 33. Qd4 {[%emt 0:00:16]} (33. Bxb5 $2 {perishes.} Rxc5 34. Bxc5 Qxb5 $19) 33... Rxc5 {[%emt 0:00:42]} 34. Qxc5 {[%emt 0:00:09]} Bc6 {[%emt 0:00:06]} 35. Be4 {[%emt 0:01:25] Black escapes into a draw.   Weighted Error Value: White=0.32/Black=0.28 (precise) .  Loses game:     	---       	Black=1      Missed win:     	White=1     	---        Mistake:       	White=2     	Black=4      Inaccurate:     	White=2     	Black=1      OK:         	White=7     	Black=10     Best:        	---       	Black=2      Strong:       	---       	Black=1} 1/2-1/2

[Event "Romanian-ch Youth Open U20 2024"]
[Site "Eforie Nord"]
[Date "2024.04.14"]
[Round "4.2"]
[White "Tudor, Henry Edward"]
[Black "Covaciu, Alexandru-Marian"]
[Result "1-0"]
[ECO "A80"]
[WhiteElo "2279"]
[BlackElo "1631"]
[Annotator "TA"]
[PlyCount "81"]
[EventDate "2024.04.10"]
[EventType "swiss"]
[EventCountry "ROU"]
[SourceTitle "playchess.com"]
[Source "ChessBase"]
[SourceQuality "1"]
[TimeControl "5400+30"]

{[%evp 10,81,50,16,13,15,15,0,12,-2,45,18,26,31,38,-12,1,-33,27,7,33,0,29,31,46,4,16,-16,-44,-46,-45,-29,24,26,24,21,33,32,66,54,78,63,77,64,155,164,429,426,434,442,441,433,573,575,614,622,610,612,1375,1329,1139,1139,1135,1135,1902,1678,5585,958,918,918,834,757,742,724]} 1. d4 {[%emt 0:00:14]} f5 {[%emt 0:00:21]} 2. Bg5 {[%emt 0:09:29]} h6 {[%emt 0:00:59]} 3. Bh4 {[%emt 0:00:23]} g5 {[%emt 0:00:52]} 4. e3 {[%emt 0:04:30]} Nf6 {[%emt 0:04:15]} 5. Bg3 {[%emt 0:00:34]} d6 {[%emt 0:01:20]} 6. Bd3 {[%emt 0:12:14]} Nc6 {[%emt 0:10:52]} 7. h4 {[%emt 0:09:20] hxg5 is the strong threat.} g4 {[%emt 0:03:29]} 8. h5 {[%emt 0:00:53]} e5 {[%emt 0:03:56] The position is equal.} 9. c3 {[%emt 0:01:48]} e4 {[%emt 0:03:10]} (9... Be6 $11) 10. Bc2 {[%emt 0:13:31]} Be6 {[%emt 0:10:24]} 11. Ne2 {[%emt 0:04:05]} d5 {[%emt 0:04:43]} 12. a4 {[%emt 0:06:54]} (12. Nd2 $14) 12... Bd6 {[%emt 0:03:45]} 13. Bh4 {[%emt 0:02:07]} Be7 {[%emt 0:00:11]} ({Black should try} 13... O-O $15) 14. Nd2 {[%emt 0:01:18][%cal Bb1d2,Bd2b3,Bb3c5,Bc5a6,Ba6b4][%mdl 32]} Bf7 {[%emt 0:03:49]} 15. Ng3 {[%emt 0:09:13]} Qd7 {[%emt 0:01:58]} 16. a5 {[%emt 0:00:18]} a6 {[%emt 0:10:22]} 17. Nb3 {[%emt 0:01:44]} O-O {[%emt 0:03:23]} 18. Bxf6 {[%emt 0:06:05]} Bxf6 {[%emt 0:00:50]} 19. Nc5 {[%emt 0:00:04][%csl LRb7,LRd7]} Qc8 {[%emt 0:00:11]} 20. Ba4 {[%emt 0:00:04]} b5 {[%emt 0:00:27]} (20... Nb8 $142 $1) 21. axb6 $11 {[%emt 0:02:36]} cxb6 {[%emt 0:00:29]} 22. Bxc6 {[%emt 0:00:03]} Qxc6 {[%emt 0:00:27]} 23. Nxa6 {[%emt 0:00:10]} ({But not} 23. Rxa6 Bg5 $16 (23... Rxa6 24. Nxa6 Ra8 25. Nb4 $16)) 23... Be6 {[%emt 0:02:10]} 24. Nb4 $36 {[%emt 0:01:39][%mdl 2048] White is more active.} Qc7 {[%emt 0:00:32]} 25. Ne2 {[%emt 0:03:51] White leaves nothing to chance now.} Bg5 {[%emt 0:00:27]} 26. g3 {[%emt 0:01:38]} Be7 {[%emt 0:02:34]} ({Black should play} 26... Bf7 $14) 27. Nf4 $16 {[%emt 0:04:38]} Bf7 {[%emt 0:01:14] [#]} (27... Qd7 28. O-O Ra5) 28. Nbxd5 $18 {[%emt 0:00:21] A dynamic duo of knights. White is clearly winning.} Qb7 {[%emt 0:01:01]} 29. Nxe7+ {[%emt 0:00:22]} Qxe7 {[%emt 0:00:07]} 30. O-O {[%emt 0:00:52]} Qg5 {[%emt 0:00:20]} 31. d5 {[%emt 0:01:12]} Rxa1 {[%emt 0:01:41]} 32. Qxa1 {[%emt 0:00:01]} Rd8 {[%emt 0:00:09]} 33. Rd1 {[%emt 0:00:50]} Bxh5 {[%emt 0:02:12]} 34. Ne6 {[%emt 0:00:04][%csl LRd8,LRg5]} Qe7 {[%emt 0:00:07] Against d6} 35. Nxd8 {[%emt 0:00:05]} Qxd8 {[%emt 0:00:06][%mdl 4096] Endgame. KQR-KQB} 36. d6 {[%emt 0:00:09] Threatens to win with d7.} Bf7 {[%emt 0:00:08]} 37. d7 {[%emt 0:00:19] Strongly threatening Rd6.} h5 {[%emt 0:00:16] [#]} 38. Qa8 {[%emt 0:00:04]} Qxa8 {[%emt 0:00:09]} 39. d8=Q+ {[%emt 0:00:07]} (39. d8=B $2 {too greedy.} Bb3 40. Rd2 Qa1+ 41. Kg2 Bd1 42. Rxd1 Qxd1 $19) 39... Qxd8 {[%emt 0:00:07]} 40. Rxd8+ {[%emt 0:00:04]} Kg7 {[%emt 0:00:14]} 41. Rb8 {[%emt 0:00:02] Weighted Error Value: White=0.13 (very precise) /Black=0.46.  Mistake:       	White=1     	Black=5      Inaccurate:     	White=5     	Black=4      OK:         	White=12    	Black=3      Best:        	White=1     	---} 1-0

[Event "Romanian-ch Youth Open U20 2024"]
[Site "Eforie Nord"]
[Date "2024.04.14"]
[Round "4.3"]
[White "Coca, Cristi-Iulian"]
[Black "Barbu, Simon-Alexandru"]
[Result "0-1"]
[ECO "A37"]
[WhiteElo "2235"]
[BlackElo "1954"]
[Annotator "RC"]
[PlyCount "112"]
[EventDate "2024.04.10"]
[EventType "swiss"]
[EventCountry "ROU"]
[SourceTitle "playchess.com"]
[Source "ChessBase"]
[SourceQuality "1"]
[TimeControl "5400+30"]

1. c4 {[%emt 0:00:37]} c5 {[%emt 0:00:29]} 2. Nc3 {[%emt 0:00:07]} g6 {[%emt 0:00:37]} 3. Nf3 {[%emt 0:02:01]} Bg7 {[%emt 0:00:05]} 4. g3 {[%emt 0:00:47]} Nc6 {[%emt 0:01:22]} 5. Bg2 {[%emt 0:00:05]} e5 {[%emt 0:00:08]} 6. O-O {[%emt 0:00:31]} Nge7 {[%emt 0:00:03]} 7. Ne1 {[%emt 0:01:45]} O-O {[%emt 0:02:01]} 8. Nc2 {[%emt 0:00:04]} d6 {[%emt 0:00:06]} 9. Ne3 {[%emt 0:00:24]} Be6 {[%emt 0:00:21]} 10. a3 {[%emt 0:03:48]} Rb8 {[%emt 0:02:43]} 11. Rb1 {[%emt 0:00:54]} Qd7 {[%emt 0:01:38]} 12. b4 {[%emt 0:10:34]} b6 {[%emt 0:05:09]} 13. Ned5 {[%emt 0:06:04]} Bf5 {[%emt 0:21:01]} 14. d3 {[%emt 0:02:22]} Bh3 {[%emt 0:07:03]} 15. Nxe7+ {[%emt 0:19:52]} Nxe7 {[%emt 0:00:38]} 16. Qa4 {[%emt 0:00:40]} Qxa4 {[%emt 0:05:03]} 17. Nxa4 {[%emt 0:00:01]} Bxg2 {[%emt 0:00:07]} 18. Kxg2 {[%emt 0:00:02]} f5 {[%emt 0:04:25]} 19. Nc3 {[%emt 0:04:06]} Nc6 {[%emt 0:10:15]} 20. Nb5 {[%emt 0:05:13]} Rfd8 {[%emt 0:09:11]} 21. Bd2 {[%emt 0:03:37]} Kf7 {[%emt 0:05:06]} 22. Nc7 {[%emt 0:06:37]} Rd7 {[%emt 0:10:33]} 23. Na6 {[%emt 0:02:23]} Re8 {[%emt 0:01:07]} 24. e4 {[%emt 0:04:00]} Bf6 {[%emt 0:06:03]} 25. f3 {[%emt 0:02:07]} Bd8 {[%emt 0:00:17]} 26. Bc3 {[%emt 0:02:38]} h5 {[%emt 0:03:39]} 27. a4 {[%emt 0:00:44]} Ke6 {[%emt 0:00:45]} 28. a5 {[%emt 0:04:05]} Rf7 {[%emt 0:02:10]} 29. Bd2 {[%emt 0:07:50]} f4 {[%emt 0:00:46]} 30. gxf4 {[%emt 0:01:04]} exf4 {[%emt 0:00:04]} 31. Bc3 {[%emt 0:03:04]} g5 {[%emt 0:00:12]} 32. b5 {[%emt 0:01:53]} Ne7 {[%emt 0:02:21]} 33. d4 {[%emt 0:00:28]} cxd4 {[%emt 0:00:44]} 34. Bxd4 {[%emt 0:00:07]} Ng6 {[%emt 0:00:01]} 35. h3 {[%emt 0:02:36]} g4 {[%emt 0:00:01]} 36. hxg4 {[%emt 0:00:28]} hxg4 {[%emt 0:00:01]} 37. fxg4 {[%emt 0:00:06]} f3+ {[%emt 0:00:29]} 38. Kf2 {[%emt 0:00:59]} Bh4+ {[%emt 0:00:48]} 39. Ke3 {[%emt 0:00:05]} Bg5+ {[%emt 0:00:10]} 40. Kd3 {[%emt 0:00:29]} bxa5 {[%emt 0:00:44]} 41. c5 {[%emt 0:00:59]} Nf4+ {[%emt 0:00:27]} 42. Kc2 {[%emt 0:00:05]} Ne2 {[%emt 0:00:34]} 43. Bf2 {[%emt 0:00:00]} dxc5 {[%emt 0:00:00]} 44. Nxc5+ {[%emt 0:00:18]} Ke5 {[%emt 0:01:06]} 45. Rb3 {[%emt 0:01:55]} Rc8 {[%emt 0:01:46]} 46. Kb2 {[%emt 0:00:35]} a4 {[%emt 0:00:38]} 47. Rd3 {[%emt 0:00:36]} Kf4 {[%emt 0:00:24]} 48. e5 {[%emt 0:03:11]} Kxg4 {[%emt 0:00:10]} 49. e6 {[%emt 0:00:19]} Rf4 {[%emt 0:00:18]} 50. Be3 {[%emt 0:00:54]} Bf6+ {[%emt 0:00:48]} 51. Ka3 {[%emt 0:00:17]} Rc4 {[%emt 0:00:13]} 52. Nd7 {[%emt 0:01:17]} Rc3+ {[%emt 0:00:27]} 53. Rxc3 {[%emt 0:00:09]} Rxc3+ {[%emt 0:00:05]} 54. Ka2 {[%emt 0:00:04]} Rxe3 {[%emt 0:00:51]} 55. Nxf6+ {[%emt 0:00:03]} Kg3 {[%emt 0:00:04]} 56. Nh7 {[%emt 0:01:36]} Kg2 {[%emt 0:00:18]} 0-1